fUSD/lending_fUSD_20240422
["ID","MTS","AMOUNT","RATE_DAILY","PERIOD"]
[323231687,1713818085596,-4572.48,0.00019726,2]
[323231688,1713818085606,-12108.08,0.00019726,2]
[323231689,1713818085616,-6735.46,0.00019726,2]
[323231690,1713818085625,-2605.69,0.00019726,2]
[323231691,1713818085636,-505.78,0.00019726,2]
[323231692,1713818085645,-1139.18,0.00019726,2]
[323231693,1713818085654,-4970.85,0.00019726,2]
[323231694,1713818085664,-5993.52,0.00019726,2]
[323231695,1713818085674,-4162.92,0.00019726,2]
[323231696,1713818085683,-4558.05,0.00019726,2]
[323231697,1713818085693,-2320.73,0.00019726,2]
[323231698,1713818085702,-38504.87,0.00019726,2]
[323231699,1713818085711,-2509.82,0.00019726,2]
[323231700,1713818085721,-782.97,0.00019726,2]
[323231701,1713818085730,-4258.45,0.00019726,2]
[323231702,1713818085739,-1377.87,0.00019726,2]
[323231703,1713818085749,-2445.43,0.00019726,2]
[323231704,1713818085758,-844.44,0.00019726,2]
[323231705,1713818085767,-1464.57,0.00019726,2]
[323231706,1713818085777,-1360.06,0.00019726,2]
[323231707,1713818085786,-535.38,0.00019726,2]
[323231708,1713818085796,-519.11,0.00019726,2]
[323231709,1713818085805,-2389.58,0.00019726,2]
[323231710,1713818085815,-1194.19,0.00019726,2]
[323231711,1713818085825,-4846.13,0.00019726,2]
[323231712,1713818085834,-2486.12,0.00019726,2]
[323231713,1713818085843,-4078.34,0.00019726,2]
[323231714,1713818085853,-1059.02,0.00019726,2]
[323231715,1713818085863,-4269.95,0.00019726,2]
[323231716,1713818085874,-9091.85,0.00019726,2]
[323231717,1713818085884,-5188.48,0.00019726,2]
[323231718,1713818085893,-3845.3,0.00019726,2]
[323231719,1713818085904,-1379.16,0.00019726,2]
[323231720,1713818085914,-3772.2,0.00019726,2]
[323231721,1713818085924,-2377.01,0.00019726,2]
[323231722,1713818085933,-3089.82,0.00019726,2]
[323231723,1713818085942,-11616.79,0.00019726,2]
[323231724,1713818085951,-1036.73,0.00019726,2]
[323231725,1713818085961,-894.91,0.00019726,2]
[323231726,1713818085970,-519.63,0.00019726,2]
[323231727,1713818085982,-500.0,0.00019726,2]
[323231728,1713818085992,-3283.29,0.00019726,2]
[323231729,1713818086002,-574.54,0.00019726,2]
[323231730,1713818086012,-6142.2,0.00019726,2]
[323231731,1713818086021,-1052.32,0.00019726,2]
[323231732,1713818086031,-1615.52,0.00019726,2]
[323231733,1713818086040,-7530.97,0.00019726,2]
[323231734,1713818086050,-8074.97,0.00019726,2]
[323231735,1713818086060,-1654.01,0.00019726,2]
[323231736,1713818086070,-2299.35,0.00019726,2]
[323231737,1713818086079,-4170.98,0.00019726,2]
[323231738,1713818086089,-3119.61,0.00019726,2]
[323231739,1713818086099,-841.29,0.00019726,2]
[323231740,1713818086110,-9718.3,0.00019726,2]
[323231741,1713818086119,-1294.69,0.00019726,2]
[323231742,1713818086130,-580.64,0.00019726,2]
[323231743,1713818086141,-2541.75,0.00019726,2]
[323231744,1713818086151,-304.23852595,0.00019726,2]
[323231745,1713818086162,-555.29,0.00019726,2]
[323231746,1713818086171,-2729.9,0.00019726,2]
[323231747,1713818086181,-2620.59,0.00019726,2]
[323231748,1713818086191,-1646.2,0.00019726,2]
[323231749,1713818086202,-3612.79,0.00019726,2]
[323231750,1713818086212,-3159.44,0.00019726,2]
[323231751,1713818086223,-5252.04,0.00019726,2]
[323231752,1713818086235,-1523.59,0.00019726,2]
[323231753,1713818086244,-608.44,0.00019726,2]
[323231754,1713818086254,-13095.85,0.00019726,2]
[323231755,1713818086263,-5833.37,0.00019726,2]
[323231756,1713818086274,-6897.16,0.00019726,2]
[323231757,1713818086285,-6152.13,0.00019726,2]
[323231758,1713818086296,-3299.3,0.00019726,2]
[323231759,1713818086305,-1238.36,0.00019726,2]
[323231760,1713818086315,-13435.6,0.00019726,2]
[323231761,1713818086324,-943.08,0.00019726,2]
[323231762,1713818086335,-3819.44,0.00019726,2]
[323231763,1713818086346,-769.83,0.00019726,2]
[323231764,1713818086355,-1406.96,0.00019726,2]
[323231765,1713818086365,-500.0,0.00019726,2]
[323231766,1713818086375,-722.61,0.00019726,2]
[323231767,1713818086385,-930.5,0.00019726,2]
[323231768,1713818086394,-2367.11,0.00019726,2]
[323231769,1713818086403,-780.85,0.00019726,2]
[323231770,1713818086413,-7256.26,0.00019726,2]
[323231771,1713818086424,-1025.63,0.00019726,2]
[323231772,1713818086434,-10754.04,0.00019726,2]
[323231773,1713818086444,-634.73,0.00019726,2]
[323231774,1713818086453,-530.36,0.00019726,2]
[323231775,1713818086463,-6189.49,0.00019726,2]
[323231776,1713818086474,-2911.37,0.00019726,2]
[323231777,1713818086483,-943.08,0.00019726,2]
[323231778,1713818086493,-4556.59,0.00019726,2]
[323231779,1713818086503,-523.92,0.00019726,2]
[323231780,1713818086513,-1833.33,0.00019726,2]
[323231781,1713818086524,-1392.71,0.00019726,2]
[323231782,1713818086533,-664.1,0.00019726,2]
[323231783,1713818086543,-1487.75,0.00019726,2]
[323231784,1713818086552,-4694.74,0.00019726,2]
[323231785,1713818086562,-1392.18,0.00019726,2]
[323231786,1713818086572,-819.7,0.00019726,2]
[323231787,1713818086582,-3597.55,0.00019726,2]
[323231788,1713818086591,-806.58,0.00019726,2]
[323231789,1713818086601,-1874.89,0.00019726,2]
[323231790,1713818086610,-3150.13,0.00019726,2]
[323231791,1713818086620,-1514.8,0.00019726,2]
[323231792,1713818086629,-702.44,0.00019726,2]
[323231793,1713818086639,-1715.22,0.00019726,2]
[323231794,1713818086649,-1604.37,0.00019726,2]
[323231795,1713818086658,-1853.0,0.00019726,2]
[323231796,1713818086667,-1000.0,0.00019726,2]
[323231797,1713818086677,-766.62411611,0.00019728,2]
[323231798,1713818086686,-162.0,0.0001973,2]
[323231799,1713818086695,-483.43153924,0.00019772,2]
[323231800,1713818086704,-1000.0,0.00019773,2]
[323231801,1713818086713,-154.98058797,0.00019808,2]
[323231802,1713818086723,-157.0559743,0.00019821,2]
[323231803,1713818086732,-811.70626689,0.00019822,2]
[323231804,1713818086741,-152.0,0.00019828,8]
[323231805,1713818086751,-535.64702296,0.00019839,2]
[323231806,1713818086760,-199.999999,0.0001985,2]
[323231807,1713818086770,-151.25667543,0.00019858,2]
[323231808,1713818086779,-1236.4965449,0.0001987,2]
[323231809,1713818086788,-331.0,0.0001987,2]
[323231810,1713818086797,-214.0,0.0001987,2]
[323231811,1713818086807,-154.33780732,0.0001987,2]
[323231812,1713818086817,-700.0,0.00019876,15]
[323231813,1713818086827,-483.43153924,0.00019887,2]
[323231814,1713818086836,-3000.0,0.000199,2]
[323231815,1713818086847,-10000.000001,0.000199,2]
[323231816,1713818086857,-474.61857973,0.000199,2]
[323231817,1713818086866,-474.61857898,0.000199,2]
[323231818,1713818086876,-474.61857898,0.000199,2]
[323231819,1713818086886,-474.61857898,0.000199,2]
[323231820,1713818086895,-474.61857898,0.000199,2]
[323231821,1713818086905,-474.61857898,0.000199,2]
[323231822,1713818086915,-474.61857898,0.000199,2]
[323231823,1713818086926,-474.61857898,0.000199,2]
[323231824,1713818086936,-474.61857898,0.000199,2]
[323231825,1713818086947,-474.61857898,0.000199,2]
[323231826,1713818086956,-474.61857898,0.000199,2]
[323231827,1713818086967,-474.61857898,0.000199,2]
[323231828,1713818086976,-474.61857898,0.000199,2]
[323231829,1713818086990,-474.61857898,0.000199,2]
[323231830,1713818087001,-474.61857898,0.000199,2]
[323231831,1713818087010,-474.61857898,0.000199,2]
[323231832,1713818087020,-474.61857898,0.000199,2]
[323231833,1713818087030,-474.61857898,0.000199,2]
[323231834,1713818087040,-474.61857898,0.000199,2]
[323231835,1713818087050,-474.61857898,0.000199,2]
[323231836,1713818087059,-474.61857898,0.000199,2]
[323231837,1713818087069,-474.61857898,0.000199,2]
[323231838,1713818087080,-474.61857898,0.000199,2]
[323231839,1713818087090,-474.61857898,0.000199,2]
[323231840,1713818087100,-474.61857898,0.000199,2]
[323231841,1713818087110,-474.61857898,0.000199,2]
[323231842,1713818087120,-474.61857898,0.000199,2]
[323231843,1713818087130,-474.61857898,0.000199,2]
[323231844,1713818087139,-474.61857898,0.000199,2]
[323231845,1713818087148,-474.61857898,0.000199,2]
[323231846,1713818087158,-474.61857898,0.000199,2]
[323231847,1713818087168,-474.61857898,0.000199,2]
[323231848,1713818087177,-474.61857898,0.000199,2]
[323231849,1713818087187,-474.61857898,0.000199,2]
[323231850,1713818087198,-474.61857898,0.000199,2]
[323231851,1713818087207,-474.61857898,0.000199,2]
[323231852,1713818087216,-474.61857898,0.000199,2]
[323231853,1713818087226,-474.61857898,0.000199,2]
[323231854,1713818087236,-474.61857898,0.000199,2]
[323231855,1713818087245,-474.61857898,0.000199,2]
[323231856,1713818087254,-474.61857898,0.000199,2]
[323231857,1713818087264,-474.61857898,0.000199,2]
[323231858,1713818087274,-474.61857898,0.000199,2]
[323231859,1713818087283,-474.61857898,0.000199,2]
[323231860,1713818087292,-474.61857898,0.000199,2]
[323231861,1713818087302,-474.61857898,0.000199,2]
[323231862,1713818087311,-474.61857898,0.000199,2]
[323231863,1713818087321,-474.61857898,0.000199,2]
[323231864,1713818087330,-474.61857898,0.000199,2]
[323231865,1713818087340,-474.61857898,0.000199,2]
[323231866,1713818087349,-474.61857898,0.000199,2]
[323231867,1713818087358,-474.61857898,0.000199,2]
[323231868,1713818087369,-474.61857898,0.000199,2]
[323231869,1713818087378,-474.61857898,0.000199,2]
[323231870,1713818087389,-474.61857898,0.000199,2]
[323231871,1713818087398,-474.61857898,0.000199,2]
[323231872,1713818087407,-474.61857898,0.000199,2]
[323231873,1713818087417,-474.61857898,0.000199,2]
[323231874,1713818087574,-474.61857898,0.000199,2]
[323231875,1713818087583,-474.61857898,0.000199,2]
[323231876,1713818087593,-474.61857898,0.000199,2]
[323231877,1713818087604,-474.61857898,0.000199,2]
[323231878,1713818087614,-474.61857898,0.000199,2]
[323231879,1713818087623,-474.61857898,0.000199,2]
[323231880,1713818087634,-474.61857898,0.000199,2]
[323231881,1713818087643,-474.61857898,0.000199,2]
[323231882,1713818087653,-474.61857898,0.000199,2]
[323231883,1713818087662,-474.61857898,0.000199,2]
[323231884,1713818087672,-474.61857898,0.000199,2]
[323231885,1713818087682,-474.61857898,0.000199,2]
[323231886,1713818087692,-474.61857898,0.000199,2]
[323231887,1713818087702,-474.61857898,0.000199,2]
[323231888,1713818087712,-474.61857898,0.000199,2]
[323231889,1713818087722,-474.61857898,0.000199,2]
[323231890,1713818087731,-474.61857898,0.000199,2]
[323231891,1713818087741,-474.61857898,0.000199,2]
[323231892,1713818087751,-474.61857898,0.000199,2]
[323231893,1713818087760,-474.61857898,0.000199,2]
[323231894,1713818087771,-474.61857898,0.000199,2]
[323231895,1713818087781,-474.61857898,0.000199,2]
[323231896,1713818087790,-474.61857898,0.000199,2]
[323231897,1713818087799,-474.61857898,0.000199,2]
[323231898,1713818087809,-474.61857898,0.000199,2]
[323231899,1713818087817,-474.61857898,0.000199,2]
[323231900,1713818087827,-474.61857898,0.000199,2]
[323231901,1713818087836,-474.61857898,0.000199,2]
[323231902,1713818087846,-474.61857898,0.000199,2]
[323231903,1713818087855,-474.61857898,0.000199,2]
[323231904,1713818087866,-474.61857898,0.000199,2]
[323231905,1713818087876,-474.61857898,0.000199,2]
[323231906,1713818087892,-1000.0,0.00019916,2]
[323231907,1713818087901,-153.63168074,0.00019918,2]
[323231908,1713818087914,-394.52557543,0.00019922,2]
[323231909,1713818087924,-157.0559743,0.00019924,2]
[323231910,1713818087933,-811.70626689,0.00019927,2]
[323231911,1713818087945,-292.15,0.0001993,2]
[323231912,1713818087955,-600.0,0.00019934,2]
[323231913,1713818087964,-2923.73919408,0.00019943,2]
[323231914,1713818087974,-394.52557543,0.00019965,2]
[323231915,1713818087986,-154.39465349,0.00019992,2]
[323231916,1713818087997,-155.39125534,0.00019998,2]
[323231917,1713818088006,-20202.77055832,0.0002,2]
[323231918,1713818088015,-1257.22395038,0.0002,2]
[323231919,1713818088024,-155.0,0.0002,2]
[323231920,1713818088034,-186.14079754,0.0002,2]
[323231921,1713818088043,-641.50946989,0.0002,2]
[323231922,1713818088052,-155.0,0.0002,2]
[323231923,1713818088063,-6221.44447625,0.0002,2]
[323231924,1713818088072,-859.71163069,0.0002,2]
[323231925,1713818088081,-1766.39515948,0.0002,2]
[323231926,1713818088092,-375.60936,0.0002,4]
[323231927,1713818088102,-10260.0,0.0002,3]
[323231928,1713818088112,-155.01969751,0.0002,2]
[323231929,1713818088122,-354.0,0.0002,2]
[323231930,1713818088132,-188.0,0.0002,2]
[323231931,1713818088142,-14726.78021706,0.0002,2]
[323231932,1713818088151,-709.0,0.0002,2]
[323231933,1713818088161,-4000.0,0.0002,4]
[323231934,1713818088170,-4000.0,0.0002,3]
[323231935,1713818088180,-10873.81146431,0.0002,5]
[323231936,1713818088189,-188.0,0.0002,2]
[323231937,1713818088198,-200.0,0.0002,2]
[323231938,1713818088208,-709.0,0.0002,2]
[323231939,1713818088217,-218.96435383,0.0002,4]
[323231940,1713818088226,-651.83697532,0.0002,2]
[323231941,1713818088236,-354.0,0.0002,2]
[323231942,1713818088245,-966.0,0.0002,2]
[323231943,1713818088254,-652.4,0.0002,2]
[323231944,1713818088264,-652.4,0.0002,2]
[323231945,1713818088273,-188.0,0.0002,2]
[323231946,1713818088283,-175.03774772,0.0002,2]
[323231947,1713818088292,-354.0,0.0002,2]
[323231948,1713818088301,-950.0,0.0002,3]
[323231949,1713818088309,-10510.39449253,0.0002,2]
[323231950,1713818088318,-7547.58016153,0.0002,2]
[323231951,1713818088327,-966.0,0.0002,2]
[323231952,1713818088336,-5000.0,0.0002,2]
[323231953,1713818088346,-200.0,0.0002,7]
[323231954,1713818088355,-10408.06421882,0.0002,4]
[323231955,1713818088364,-2000.0,0.0002,2]
[323231956,1713818088373,-11911.76812015,0.0002,2]
[323231957,1713818088384,-64015.94325359,0.0002,2]
[323231958,1713818088394,-200.0,0.0002,7]
[323231959,1713818088403,-2999.98,0.0002,2]
[323231960,1713818088413,-3000.0,0.0002,2]
[323231961,1713818088423,-3000.0,0.0002,2]
[323231962,1713818088432,-3000.0,0.0002,2]
[323231963,1713818088442,-3000.0,0.0002,2]
[323231964,1713818088451,-807.85,0.0002,2]
[323231965,1713818088461,-276.85940645,0.0002,2]
[323231966,1713818088471,-155.1743726,0.0002,2]
[323231967,1713818088480,-990.23472911,0.0002,2]
[323231968,1713818088489,-155.06987727,0.0002,2]
[323231969,1713818088499,-155.0,0.0002,2]
[323231970,1713818088508,-155.0,0.0002,2]
[323231971,1713818088518,-541740.72064076,0.0002,2]
[323231972,1713818088527,-300557.08300961,0.0002,2]
[323231973,1713818088538,-4830.0,0.0002,2]
[323231974,1713818088548,-150.0,0.0002,2]
[323231975,1713818088558,-3545.0,0.0002,2]
[323231976,1713818088568,-176.0,0.0002,2]
[323231977,1713818088578,-200.0,0.0002,2]
[323231978,1713818088592,-176.0,0.0002,2]
[323231979,1713818088629,-627.0,0.0002,2]
[323231980,1713818088639,-200.0,0.0002,7]
[323231981,1713818088648,-7051.98409417,0.0002,2]
[323231982,1713818088657,-290.14001098,0.0002,2]
[323231983,1713818088667,-3726.4930692,0.0002,2]
[323231984,1713818088676,-6653.0,0.0002,2]
[323231985,1713818088685,-3950.0,0.0002,2]
[323231986,1713818088696,-2459.96727053,0.0002,2]
[323231987,1713818088706,-2551.61652328,0.0002,2]
[323231988,1713818088715,-2209.0,0.0002,2]
[323231989,1713818088725,-84412.480666,0.0002,2]
[323231990,1713818088733,-150.0,0.0002,2]
[323231991,1713818088742,-6565.99404417,0.0002,2]
[323231992,1713818088751,-1059.08262856,0.0002,2]
[323231993,1713818088762,-600.117,0.0002,2]
[323231994,1713818088770,-200.0,0.0002,7]
[323231995,1713818088779,-500.0,0.0002,2]
[323231996,1713818088789,-500.0,0.0002,2]
[323231997,1713818088797,-500.0,0.0002,2]
[323231998,1713818088807,-2464.0,0.0002,2]
[323231999,1713818088817,-8988.02453193,0.0002,2]
[323232000,1713818088826,-150.0,0.0002,2]
[323232001,1713818088835,-613.77201579,0.0002,2]
[323232002,1713818088845,-540.48649222,0.0002,2]
[323232003,1713818088854,-1669.24602589,0.0002,2]
[323232004,1713818088863,-1371.37954872,0.0002,2]
[323232005,1713818088872,-777.17736497,0.0002,2]
[323232006,1713818088881,-588.13854086,0.0002,2]
[323232007,1713818088892,-1126.82682452,0.0002,2]
[323232008,1713818088904,-1027.90030401,0.0002,2]
[323232009,1713818088915,-895.81782193,0.0002,2]
[323232010,1713818088925,-560.84994634,0.0002,2]
[323232011,1713818088934,-541.28977306,0.0002,2]
[323232012,1713818088943,-706.31525761,0.0002,2]
[323232013,1713818088953,-629.15486833,0.0002,2]
[323232014,1713818088962,-585.06264934,0.0002,2]
[323232015,1713818088970,-1117.80386208,0.0002,2]
[323232016,1713818088980,-1070.97834327,0.0002,2]
[323232017,1713818088989,-1292.9747784,0.0002,2]
[323232018,1713818088999,-1409.41673994,0.0002,2]
[323232019,1713818089008,-895.41494661,0.0002,2]
[323232020,1713818089017,-627.70558232,0.0002,2]
[323232021,1713818089026,-1508.79806727,0.0002,2]
[323232022,1713818089035,-1031.38005632,0.0002,2]
[323232023,1713818089044,-633.01704112,0.0002,2]
[323232024,1713818089053,-718.90581994,0.0002,2]
[323232025,1713818089062,-969.72592293,0.0002,2]
[323232026,1713818089072,-1375.53776185,0.0002,2]
[323232027,1713818089080,-1338.7944062,0.0002,2]
[323232028,1713818089089,-643.14133204,0.0002,2]
[323232029,1713818089098,-1300.07099003,0.0002,2]
[323232030,1713818089107,-1086.81252473,0.0002,2]
[323232031,1713818089116,-1120.33099044,0.0002,2]
[323232032,1713818089125,-960.16772748,0.0002,2]
[323232033,1713818089135,-534.42040765,0.0002,2]
[323232034,1713818089144,-753.31155526,0.0002,2]
[323232035,1713818089153,-812.07252135,0.0002,2]
[323232036,1713818089162,-1092.6789874,0.0002,2]
[323232037,1713818089172,-546.72746783,0.0002,2]
[323232038,1713818089180,-1749.74691204,0.0002,2]
[323232039,1713818089190,-1083.27070229,0.0002,2]
[323232040,1713818089200,-953.69422897,0.0002,2]
[323232041,1713818089209,-1474.12760391,0.0002,2]
[323232042,1713818089218,-1939.8797643,0.0002,2]
[323232043,1713818089228,-1150.51170717,0.0002,2]
[323232044,1713818089237,-1191.65344924,0.0002,2]
[323232045,1713818089248,-873.46197048,0.0002,2]
[323232046,1713818089257,-548.10165674,0.0002,2]
[323232047,1713818089267,-200.0,0.0002,10]
[323232048,1713818089276,-200.0,0.0002,10]
[323232049,1713818089285,-200.0,0.0002,10]
[323232050,1713818089295,-200.0,0.0002,10]
[323232051,1713818089305,-1713.38728391,0.0002,2]
[323232052,1713818089314,-200.0,0.0002,10]
[323232053,1713818089323,-200.0,0.0002,10]
[323232054,1713818089333,-861.03546317,0.0002,2]
[323232055,1713818089341,-200.0,0.0002,10]
[323232056,1713818089351,-200.0,0.0002,10]
[323232057,1713818089360,-583.49118716,0.0002,2]
[323232058,1713818089369,-200.0,0.0002,10]
[323232059,1713818089379,-200.0,0.0002,10]
[323232060,1713818089389,-200.0,0.0002,10]
[323232061,1713818089398,-983.94017696,0.0002,2]
[323232062,1713818089406,-200.0,0.0002,10]
[323232063,1713818089416,-200.0,0.0002,10]
[323232064,1713818089425,-219.04564972,0.0002,10]
[323232065,1713818089434,-778.66374754,0.0002,2]
[323232066,1713818089444,-849.04162422,0.0002,2]
[323232067,1713818089453,-1645.4967017,0.0002,2]
[323232068,1713818089464,-991.28760972,0.0002,2]
[323232069,1713818089474,-919.49212644,0.0002,2]
[323232070,1713818089483,-650.12222481,0.0002,2]
[323232071,1713818089492,-849.97643198,0.0002,2]
[323232072,1713818089502,-965.80324874,0.0002,2]
[323232073,1713818089512,-648.43148998,0.0002,2]
[323232074,1713818089522,-653.82214964,0.0002,2]
[323232075,1713818089531,-850.19732268,0.0002,2]
[323232076,1713818089540,-872.56548329,0.0002,2]
[323232077,1713818089550,-883.39006058,0.0002,2]
[323232078,1713818089560,-1447.00255438,0.0002,2]
[323232079,1713818089570,-668.79941395,0.0002,2]
[323232080,1713818089581,-1711.1203665,0.0002,2]
[323232081,1713818089590,-586.18,0.0002,2]
[323232082,1713818089599,-643.735037,0.0002,2]
[323232083,1713818089609,-1611.75715247,0.0002,2]
[323232084,1713818089619,-710.39692669,0.0002,2]
[323232085,1713818089628,-2950.0,0.0002,2]
[323232086,1713818089638,-1122.42145698,0.0002,2]
[323232087,1713818089647,-585.24693572,0.0002,2]
[323232088,1713818089656,-844.75822822,0.0002,2]
[323232089,1713818089665,-941.91466087,0.0002,2]
[323232090,1713818089676,-758.69177269,0.0002,2]
[323232091,1713818089685,-1156.32946502,0.0002,2]
[323232092,1713818089694,-905.6427952,0.0002,2]
[323232093,1713818089703,-1225.74629597,0.0002,2]
[323232094,1713818089712,-762.62844255,0.0002,2]
[323232095,1713818089721,-580.81167735,0.0002,2]
[323232096,1713818089730,-1207.31654355,0.0002,2]
[323232097,1713818089739,-847.52627128,0.0002,2]
[323232098,1713818089748,-889.70879133,0.0002,2]
[323232099,1713818089757,-1458.40927294,0.0002,2]
[323232100,1713818089766,-1857.35609548,0.0002,2]
[323232101,1713818089775,-1346.728259,0.0002,2]
[323232102,1713818089784,-1384.17346161,0.0002,2]
[323232103,1713818089793,-797.83,0.0002,2]
[323232104,1713818089802,-838.26430419,0.0002,2]
[323232105,1713818089812,-666.98346854,0.0002,2]
[323232106,1713818089822,-208.21559697,0.0002,2]
[323232107,1713818089832,-515.59786723,0.0002,2]
[323232108,1713818089841,-562.26974803,0.0002,2]
[323232109,1713818089849,-1234.62288962,0.0002,2]
[323232110,1713818089859,-1330.05877703,0.0002,2]
[323232111,1713818089870,-982.43937793,0.0002,2]
[323232112,1713818089880,-2343.63355342,0.0002,2]
[323232113,1713818089890,-1458.64536987,0.0002,2]
[323232114,1713818089900,-847.90752497,0.0002,2]
[323232115,1713818089910,-1545.96028514,0.0002,2]
[323232116,1713818089921,-3597.96853564,0.0002,2]
[323232117,1713818089931,-715.1,0.0002,2]
[323232118,1713818089941,-1489.9519479,0.0002,2]
[323232119,1713818089950,-1733.23584585,0.0002,2]
[323232120,1713818089959,-1331.57063052,0.0002,2]
[323232121,1713818089968,-1524.2455984,0.0002,2]
[323232122,1713818089978,-1445.65555359,0.0002,2]
[323232123,1713818089987,-521.46120055,0.0002,2]
[323232124,1713818089997,-1681.42241737,0.0002,2]
[323232125,1713818090006,-1162.59263295,0.0002,2]
[323232126,1713818090015,-620.10181584,0.0002,2]
[323232127,1713818090025,-1395.52031122,0.0002,2]
[323232128,1713818090034,-255.4283341,0.0002,2]
[323232129,1713818090044,-500.0,0.0002,2]
[323232130,1713818090053,-850.51329435,0.0002,2]
[323232131,1713818090062,-651.8479896,0.0002,2]
[323232132,1713818090072,-1280.91461232,0.0002,2]
[323232133,1713818090081,-1459.66954495,0.0002,2]
[323232134,1713818090089,-538.67183385,0.0002,2]
[323232135,1713818090098,-534.92959044,0.0002,2]
[323232136,1713818090107,-514.96,0.0002,2]
[323232137,1713818090115,-537.23594072,0.0002,2]
[323232138,1713818090124,-1610.80091059,0.0002,2]
[323232139,1713818090132,-1363.17291433,0.0002,2]
[323232140,1713818090142,-786.32322776,0.0002,2]
[323232141,1713818090151,-746.42082313,0.0002,2]
[323232142,1713818090161,-788.61330781,0.0002,2]
[323232143,1713818090171,-1371.60908664,0.0002,2]
[323232144,1713818090181,-572.35463203,0.0002,2]
[323232145,1713818090191,-1080.84108576,0.0002,2]
[323232146,1713818090200,-1639.5090839,0.0002,2]
[323232147,1713818090210,-927.64626648,0.0002,2]
[323232148,1713818090219,-1053.55593598,0.0002,2]
[323232149,1713818090228,-820.58380233,0.0002,2]
[323232150,1713818090237,-2417.57789317,0.0002,2]
[323232151,1713818090246,-616.77791752,0.0002,2]
[323232152,1713818090256,-1496.57688977,0.0002,2]
[323232153,1713818090265,-1901.52553562,0.0002,2]
[323232154,1713818090274,-1504.74777911,0.0002,2]
[323232155,1713818090283,-531.98846643,0.0002,2]
[323232156,1713818090292,-1164.66418788,0.0002,2]
[323232157,1713818090301,-1596.43,0.0002,2]
[323232158,1713818090310,-1493.67841186,0.0002,2]
[323232159,1713818090319,-889.83569593,0.0002,2]
[323232160,1713818090328,-693.81817048,0.0002,2]
[323232161,1713818090337,-549.20706802,0.0002,2]
[323232162,1713818090346,-1438.60932099,0.0002,2]
[323232163,1713818090356,-1184.69560727,0.0002,2]
[323232164,1713818090364,-1024.47032452,0.0002,2]
[323232165,1713818090373,-1243.7523273,0.0002,2]
[323232166,1713818090382,-675.16816173,0.0002,2]
[323232167,1713818090392,-2073.06048031,0.0002,2]
[323232168,1713818090401,-1245.55632116,0.0002,2]
[323232169,1713818090409,-1364.14432263,0.0002,2]
[323232170,1713818090418,-1296.36669746,0.0002,2]
[323232171,1713818090428,-785.37864626,0.0002,2]
[323232172,1713818090437,-1343.30864612,0.0002,2]
[323232173,1713818090446,-1627.92,0.0002,2]
[323232174,1713818090455,-1215.58282702,0.0002,2]
[323232175,1713818090464,-1663.96734274,0.0002,2]
[323232176,1713818090473,-1496.7068095,0.0002,2]
[323232177,1713818090482,-781.75835946,0.0002,2]
[323232178,1713818090491,-1013.21642377,0.0002,2]
[323232179,1713818090500,-1291.75,0.0002,2]
[323232180,1713818090509,-1208.7751009,0.0002,2]
[323232181,1713818090519,-1167.13792661,0.0002,2]
[323232182,1713818090528,-636.54070087,0.0002,2]
[323232183,1713818090537,-979.76367135,0.0002,2]
[323232184,1713818090546,-1192.86773878,0.0002,2]
[323232185,1713818090555,-508.14077792,0.0002,2]
[323232186,1713818090564,-1367.61512837,0.0002,2]